Cogmind - Beta 16 @@@ ROGUE MODE // 2025.12.28 @ 15:33:53 Player: JuustuToug Result: Destroyed by C8-CLC(R) with Subdweller Machine Gun Performance ------------- Evolutions (0) 0 Regions Visited (2) 400 Robots Destroyed (21) 105 Value Destroyed (447) 447 Prototype IDs (0) 0 Alien Tech Used (0) 0 Bonus (0) 0 TOTAL SCORE: 952 Bonus ------- None Cogmind --------- Core Integrity 0/250 Matter 270/300 Energy 231/250 System Corruption 2% Temperature Cool (0) Movement Walking (470) Ox5 Location -10/Subcaves Parts ------- > --- POWER (1) -------- Ion Engine > --- PROPULSION (2) --- Light Treads Aluminum Leg > --- UTILITY (2) ------ High-capacity Storage Unit > --- WEAPON (2) ------- Riot Gun Subdweller Machine Gun > --- INVENTORY (20) --- Aluminum Leg Aluminum Leg Improved Heat Sink Structural Scanner Signal Interpreter Small Laser Light Assault Rifle Light Assault Rifle Light Assault Rifle Light Assault Rifle Light Assault Rifle Light Assault Rifle Light Assault Rifle Light Assault Rifle Barrage Gun Grenade Launcher Subdweller Shrapnel Launcher Peak State ------------ > --- POWER ------------ Light Nuclear Core > --- PROPULSION ------- Light Treads Light Treads > --- UTILITY ---------- High-capacity Storage Unit Seismic Detector > --- WEAPON ----------- Makeshift Laser Barrage Gun > --- INVENTORY -------- Ion Engine Light Treads Aluminum Leg Aluminum Leg Aluminum Leg Aluminum Leg Improved Heat Sink Structural Scanner Signal Interpreter Small Laser Light Assault Rifle Light Assault Rifle Light Assault Rifle Light Assault Rifle Light Assault Rifle Light Assault Rifle Light Assault Rifle Light Assault Rifle Grenade Launcher [Rating: 16] Favorites ----------- Power Light Nuclear Core Engine Ion Engine Power Core Light Nuclear Core Propulsion Light Treads Treads Light Treads Leg Aluminum Leg Utility Seismic Detector Device Seismic Detector Storage High-capacity Storage Unit Weapon Light Assault Rifle Energy Gun Riot Gun Ballistic Gun Light Assault Rifle Launcher Grenade Launcher Build | -11 -10 -10 ------- Run | Yrd Mat Sub Slots Evolved . | . . . Power . | . . . Propulsion . | . . . Utility . | . . . Weapon . | . . . Parts Attached 21 | 7 7 7 Power 3 | 1 2 . Engine 1 | 1 . . Core 2 | . 2 . Reactor . | . . . Propulsion 5 | 2 . 3 Treads 3 | 2 . 1 Leg 2 | . . 2 Wheel . | . . . Hover . | . . . Flight . | . . . Utility 5 | 2 3 . Device 2 | 1 1 . Storage 3 | 1 2 . Processor . | . . . Hackware . | . . . Protection . | . . . Artifact . | . . . Weapon 8 | 2 2 4 Energy Gun 3 | . 1 2 Energy Cannon . | . . . Ballistic Gun 4 | 2 . 2 Ballistic Cannon . | . . . Launcher 1 | . 1 . Special Weapon . | . . . Impact Weapon . | . . . Slashing Weapon . | . . . Piercing Weapon . | . . . Special Melee Weapon . | . . . Unidentified Prototypes . | . . . Parts Lost 4 | . . 4 Power . | . . . Propulsion 3 | . . 3 Utility 1 | . . 1 Weapon . | . . . Highest Loss Streak 2 | . . 2 To Critical Strikes . | . . . Average Backups 12 | 3 11 18 Power . | . 1 . Propulsion 3 | 1 3 3 Utility 2 | . 2 3 Weapon 6 | . 5 10 Tool/Special . | . . . Unused Backups 15 | . 4 11 Power 1 | . 1 . Propulsion 2 | . . 2 Utility 4 | . 2 2 Weapon 8 | . 1 7 Tool/Special . | . . . Average Slot Usage (%) 99 | . 99 98 Engine 3 | . 3 7 Core 10 | . 10 7 Treads 26 | . 27 19 Leg 1 | . . 7 Device 13 | . 14 13 Storage 14 | . 14 14 Energy Gun 3 | . 1 12 Ballistic Gun 24 | . 26 14 Peak Build Rating 16 | 7 11 16 Average Rating 9 | 5 9 13 On Entrance 5 | . 7 10 Avg Prop Armor Cover (%) 7 | . . 7 Naked Turns . | . . . Heaviest Build 53 | 13 48 53 Greatest Support 40 | 40 40 40 Greatest Overweight (x) 2 | 2 1 2 Average Overweight (x) . | . . 1 Largest Inventory Capacity 20 | 8 20 20 Average Capacity 18 | 7 19 20 Most Carried 20 | 4 18 20 Average Carried 12 | 3 11 18 Final Capacity 20 | 8 20 20 Final Carried 17 | 4 17 17 Class Distribution -------------------- 100% | Mutant Dominant Class ---------------- Mutant | -10/Materials Mutant | -10/Subcaves Resources | -11 -10 -10 ----------- Run | Yrd Mat Sub Matter Collected 678 | 243 324 111 Remotely . | . . . Salvage Created 713 | 74 474 165 Parts 56 | 8 38 10 Haulers Intercepted 2 | . 2 . Recyclers Shooed 2 | 1 1 . Parts Field Recycled . | . . . Retrieved Matter . | . . . Parts Self-Destructed . | . . . Prevented . | . . . Parts Restored . | . . . Kills | -11 -10 -10 ------- Run | Yrd Mat Sub Combat Hostiles Destroyed 15 | . 11 4 Guns 12 | . 8 4 AOE 3 | . 3 . Classes Destroyed 6 | 1 4 1 Tunneler 3 | 3 . . Hauler 2 | . 2 . Recycler 1 | . 1 . Swarmer 6 | . 6 . Grunt 5 | . 5 . Subdweller 4 | . . 4 Best Kill Streak 3 | 2 3 2 Combat Bots Only 3 | . 3 2 Max Kills in Single Turn 2 | 1 2 1 Gunslinging . | . . . Exploded 2 | . 2 . Melee . | . . . Uniques/NPCs Destroyed . | . . . Combat | -11 -10 -10 -------- Run | Yrd Mat Sub Hostile Shots Fired 92 | . 59 33 Missed 14 | . 11 3 Hits 78 | . 48 30 Projectile 78 | . 48 30 Damage Taken 1185 | . 482 703 Core 255 | . 99 156 Absorbed by Shields . | . . . Regen/Repaired (Parts) 69 | . 69 . Core Remaining (%) 100 | 100 . . Volleys Fired 105 | 15 69 21 Largest 2 | 2 2 2 Hottest 178 | 40 60 178 Shots Fired 208 | 30 136 42 Gun 206 | 30 134 42 Cannon . | . . . Launcher 2 | . 2 . Special . | . . . Kinetic 174 | 30 123 21 Thermal 25 | . 11 14 Explosive 2 | . 2 . Electromagnetic 7 | . . 7 Robot Hit Streak 27 | 7 17 27 Robot Miss Streak 5 | 2 5 4 Penetration Max . | . . . Secondary Targets 2 | . . 2 Max Gunslinging Chain 1 | . . 1 Shots Hit Robots 140 | 23 83 34 Core Hits 48 | 7 31 10 Critical Kills . | . . . Critical Parts Destroyed . | . . . Critical Strikes 4 | . . 4 Burn 4 | . . 4 Melee Attacks . | . . . Impact . | . . . Slashing . | . . . Piercing . | . . . Sneak Attacks . | . . . Combat Hostiles . | . . . Follow-up Attacks . | . . . Damage Inflicted 1714 | 185 863 666 Guns 1498 | 185 718 595 Cannons . | . . . Explosions 214 | . 143 71 Melee . | . . . Ramming 2 | . 2 . Kinetic 1094 | 185 605 304 Thermal 366 | . 113 253 Explosive 143 | . 143 . Electromagnetic 109 | . . 109 Impact . | . . . Slashing . | . . . Piercing . | . . . Highest Corruption 2 | . 2 2 Average Corruption 2 | . 2 2 Corruption Purged . | . . . Corruption Blocked . | . . . Effects 22 | . 19 3 Message Errors 10 | . 8 2 Matter Fused 3 | . 2 1 Heat Flow Errors 2 | . 2 . Energy Discharges 1 | . 1 . Parts Rejected 1 | . 1 . Data Loss (minor) 2 | . 2 . Data Loss (major) 2 | . 2 . Alerts 1 | . 1 . Overload Shots 3 | . . 3 Effects 3 | . . 3 Energy Bleed 1 | . . 1 Heat Surge 1 | . . 1 Short Circuit 1 | . . 1 Overflow Damage . | . . . Projectiles . | . . . Explosions . | . . . Melee . | . . . Knockbacks . | . . . Impact . | . . . Kinetic . | . . . Secondary . | . . . Self-Inflicted Damage 66 | . 10 56 Shots 2 | . 1 1 Rammed 1 | . 1 . Targets Rammed 1 | . 1 . Kicked . | . . . Crushed . | . . . Highest Temperature 369 | . 239 369 Average Temperature 69 | . 45 201 Received Heat Transfer 204 | . 156 48 Siege Activations . | . . . Martial Activations . | . . . Shielding Activations . | . . . Robots Disrupted . | . . . Combat Hostiles . | . . . Robots Corrupted . | . . . Combat Hostiles . | . . . Parts Fried . | . . . Impact Corruptions . | . . . Robots Melted . | . . . Combat Hostiles . | . . . Parts Melted 2 | . . 2 Heat Transferred 1029 | . 250 779 Parts Sabotaged . | . . . Parts Stolen . | . . . Parts Stripped . | . . . Power Chain Reactions 1 | . . 1 Alert | -11 -10 -10 ------- Run | Yrd Mat Sub Maximum Alert Level . | . . . Low Security (%) 100 | 100 100 . Level 1 . | . . . Level 2 . | . . . Level 3 . | . . . Level 4 . | . . . Level 5 . | . . . High Security . | . . . Max Security . | . . . Peak Influence 179 | 10 179 . Initial . | . . . Average 40 | 1 43 . Influence Increases 371 | 15 356 . Destroy 0b10 Robot/C 220 | . 220 . Destroy 0b10 Robot/NC 30 | 15 15 . Destroy Leader 44 | . 44 . Successful Hack 21 | . 21 . Destroy Structure 11 | . 11 . Lose Combat Pursuer 45 | . 45 . Influence Decreases 371 | 15 218 138 Entered New Map 67 | . . 67 Time Decay 294 | 15 218 61 Lost Part 10 | . . 10 Squads Dispatched . | . . . Investigation . | . . . Extermination . | . . . Reinforcement . | . . . Assault . | . . . Garrison . | . . . Intercept . | . . . Searches Triggered . | . . . Construction Impeded . | . . . Haulers Reinforced . | . . . Active Scanning Responses . | . . . Cargo Convoy Interrupts . | . . . Stealth | -11 -10 -10 --------- Run | Yrd Mat Sub Distress Signals . | . . . Communications Jammed . | . . . Distress Signals . | . . . Times Spotted 37 | . 31 6 Peak Tracking Total 5 | . 5 3 Tactical Retreats 2 | . 2 . Traps | -11 -10 -10 ------- Run | Yrd Mat Sub Traps Triggered 1 | . 1 . Indirectly . | . . . Trap Hack Attempts . | . . . Triggered . | . . . Disarmed . | . . . Reprogrammed . | . . . Reused . | . . . Traps Extracted . | . . . Installed . | . . . Triggered . | . . . Machines | -11 -10 -10 ---------- Run | Yrd Mat Sub Machines Disabled . | . . . Max in Single Turn . | . . . Machines Repaired . | . . . Machines Dismantled . | . . . Machines Sabotaged . | . . . Overloaded Fab Kills . | . . . Hacking | -11 -10 -10 --------- Run | Yrd Mat Sub Machines Accessed 10 | . 10 . Terminals 8 | . 8 . Fabricators . | . . . Repair Stations 1 | . 1 . Recycling Units 1 | . 1 . Scanalyzers . | . . . Garrison Access . | . . . Total Hacks 27 | . 27 . Successful 9 | . 9 . Failed 18 | . 18 . Catastrophic 1 | . 1 . Database Lockouts . | . . . Manual 17 | . 17 . Terminals 17 | . 17 . Fabricators . | . . . Repair Stations 7 | . 7 . Recycling Units 3 | . 3 . Scanalyzers . | . . . Garrison Access . | . . . Terminal Hacks 1 | . 1 . Terminal Index 1 | . 1 . Fabricator Hacks . | . . . Repair Station Hacks 3 | . 3 . Scan Component 2 | . 2 . Repair 1 | . 1 . Recycling Unit Hacks 1 | . 1 . Retrieve Components 1 | . 1 . Scanalyzer . | . . . Garrison Access Hacks . | . . . Unauthorized Hacks 4 | . 4 . Terminals 4 | . 4 . Skim 4 | . 4 . Fabricators . | . . . Repair Stations . | . . . Recycling Units . | . . . Scanalyzers . | . . . Garrison Access . | . . . Data Cores Recovered . | . . . Used . | . . . Hacking Detections 10 | . 10 . Full Trace Events . | . . . Feedback Events . | . . . Feedback Blocked . | . . . Robot Schematics Acquired . | . . . Robots Built . | . . . Authchips . | . . . Time . | . . . Total Robot Build Rating . | . . . Part Schematics Acquired . | . . . Parts Built . | . . . Authchips . | . . . Time . | . . . Total Part Build Rating . | . . . Part Studies Acquired . | . . . Parts Repaired 1 | . 1 . Time 26 | . 26 . Parts Recycled . | . . . Recycled Matter . | . . . Retrieved Matter . | . . . Retrieved Components 9 | . 9 . Parts Scanalyzed . | . . . Part Schematics Acquired . | . . . Parts Damaged . | . . . Bothacking | -11 -10 -10 ------------ Run | Yrd Mat Sub Used RIF Installer . | . . . Robots Hacked . | . . . Non-combat . | . . . Combat . | . . . Robot Hacks Applied . | . . . Relay Couplers Released . | . . . Fabnet Peak Effective % . | . . . Robots Rewired . | . . . Allies Hacked . | . . . Hacks Repelled . | . . . Allies | -11 -10 -10 -------- Run | Yrd Mat Sub Total Allies . | . . . Largest Group . | . . . Highest-Rated Group . | . . . Highest-Rated Ally . | . . . Total Orders . | . . . Ally Attacks . | . . . Total Damage . | . . . Kills . | . . . Allies Corrupted . | . . . Allies Melted . | . . . Intel | -11 -10 -10 ------- Run | Yrd Mat Sub Active Infowar (turns) 1973 | 2 1607 364 Structural 2 | . 2 . Seismic 1971 | 2 1605 364 Robot Analysis Total . | . . . Derelict Logs Recovered . | . . . Drone Launches . | . . . Drone Recoveries . | . . . Exploration | -11 -10 -10 ------------- Run | Yrd Mat Sub Turns Passed 2102 | 123 1607 372 Spaces Moved 710 | 49 571 90 Core 11 | 11 . . Treads 699 | 38 571 90 Legs . | . . . Wheels . | . . . Hover . | . . . Flight . | . . . Fastest Speed 50 | 50 160 240 Average Speed 223 | 139 219 288 Slowest Speed 320 | 160 240 320 Overloaded Moves . | . . . Propulsion Burnouts . | . . . Robots Hopped . | . . . Potential Cave-ins . | . . . Cave-ins Triggered . | . . . Exploration Rate (%) 34 | 4 90 10 Regions Visited 2 Branch Regions 1 Pre-discovered Areas . | . . . Known Exits Taken . | . . . Unknown Exits Taken 2 | 1 1 . Scrap Searched . | . . . Spaces Dug 11 | . 11 . Terrain Destroyed 21 | . 11 10 Melee . | . . . Projectile 1 | . . 1 AOE 20 | . 11 9 Terrain Rammed . | . . . Walls Destroyed . | . . . Machines Disabled . | . . . Actions | -11 -10 -10 --------- Run | Yrd Mat Sub Total 1045 | 76 808 161 Wait 169 | 2 132 35 Move 708 | 48 570 90 Hop . | . . . Pick Up 26 | 4 17 5 Fast Attach 9 | 7 2 . Attach 4 | . . 4 Detach . | . . . Swap 14 | . 10 4 Drop 9 | . 7 2 Fire 105 | 15 69 21 Melee . | . . . Ram . | . . . Kick . | . . . Crush 1 | . 1 . Escape Stasis . | . . . Rewire . | . . . Trap . | . . . Miscellaneous . | . . . Route ------- -11/Scrapyard -10/Materials (discovered 4 exits: [*Mat x2] / [*Min] / [*Sub]) -10/Subcaves History --------- Turn | Location | Event 8 | -11/Scrapyard | Discovered new exit (range 15) 124 | -11/Scrapyard | Entered Materials 310 | -10/Materials | Build established: Mutant 995 | -10/Materials | Repaired Lgt. Treads 1030 | -10/Materials | Discovered new exit (range 14) 1112 | -10/Materials | Discovered new exit (range 4) 1377 | -10/Materials | Discovered new exit (range 7) 1681 | -10/Materials | Discovered new exit (range 9) 1731 | -10/Materials | Entered Subcaves 1732 | -10/Subcaves | Shifting Twisted Machinery released Mak. Laser 1732 | -10/Subcaves | Approached by a straggling Scientist 1733 | -10/Subcaves | Shifting Twisted Machinery released Barrage Gun 1790 | -10/Subcaves | Shifting Twisted Machinery released Riot Gun 1805 | -10/Subcaves | Shifting Twisted Machinery released Shrapnel Trap 1853 | -10/Subcaves | Core integrity fell below 50% 1871 | -10/Subcaves | Ambushed by angry Subdweller bent on revenge 1935 | -10/Subcaves | Core integrity fell below 20% 2103 | -10/Subcaves | Destroyed by C8-CLC(R) with Subdweller Machine Gun Last Messages --------------- 01899_ Dropped Mak. Laser. 01914_ Dropped Broken Lgt. Nuclear Core. 01917_ System corrupted: Matter fused (-5). 01930_ Chain reaction triggered in Sub. Power Source. 01936_ 5I-TKD(R) destroyed. 01936_ Switching to secondary target: PX-7MW(R). 01944_ PX-7MW(R) affixes Scrap Shield Fragment to Scrap Shield. 01952_ PX-7MW(R) destroyed. 01955_ Acquired 30 matter. 01961_ Acquired 40 matter. 01978_ Subatomizers dissect the Sub. Optics. 01997_ Acquired Sub. Shrapnel Launcher. 02006_ Subatomizers dissect the Sub. Optics. 02054_ YUFLZ:O#IQO8A6UAC1,A70OBT 3FR3|B# 02070_ BO8GNV W/GB6UXT